fUSD/lending_fUSD_20251001
["ID","MTS","AMOUNT","RATE_DAILY","PERIOD"]
[388667195,1759312250384,-500.0,0.00021917,2]
[388667197,1759312250393,-500.0,0.00021917,2]
[388667199,1759312250402,-500.0,0.00021917,2]
[388667201,1759312250411,-500.0,0.00021917,2]
[388667203,1759312250420,-500.0,0.00021917,2]
[388667205,1759312250430,-500.0,0.00021917,2]
[388667207,1759312250441,-500.0,0.00021917,2]
[388667209,1759312250450,-541.59,0.00021917,2]
[388667211,1759312250459,-904.08,0.00021917,2]
[388667213,1759312250468,-2196.21,0.00021917,2]
[388667215,1759312250477,-414.86279538,0.00021917,2]
[388667216,1759312250487,-500.0,0.00021917,2]
[388667217,1759312250496,-500.0,0.00021917,2]
[388667218,1759312250505,-500.0,0.00021917,2]
[388667219,1759312250515,-500.0,0.00021917,2]
[388667220,1759312250524,-500.5541991,0.00021917,2]
[388667221,1759312250534,-500.0,0.00021917,2]
[388667222,1759312250543,-226.22414797,0.00021917,2]
[388667223,1759312250553,-682.58,0.00021917,2]
[388667224,1759312250562,-269.28042372,0.00021917,2]
[388667225,1759312250572,-500.0,0.00021917,2]
[388667226,1759312250582,-500.0,0.00021917,2]
[388667227,1759312250592,-500.0,0.00021917,2]
[388667228,1759312250602,-491.0374627,0.00021917,2]
[388667229,1759312250612,-500.0,0.00021917,2]
[388667231,1759312250622,-889.15,0.00021917,2]
[388667233,1759312250632,-500.0,0.00021917,2]
[388667235,1759312250648,-500.0,0.00021917,2]
[388667237,1759312250658,-500.0,0.00021917,2]
[388667239,1759312250668,-500.0,0.00021917,2]
[388667241,1759312250679,-500.0,0.00021917,2]
[388667243,1759312250689,-500.99914698,0.00021917,2]
[388667245,1759312250699,-500.0,0.00021917,2]
[388667247,1759312250708,-239.53465229,0.00021917,2]
[388667249,1759312250717,-500.0,0.00021917,2]
[388667251,1759312250727,-500.0,0.00021917,2]
[388667253,1759312250736,-500.0,0.00021917,2]
[388667255,1759312250745,-500.0,0.00021917,2]
[388667257,1759312250756,-500.6625693,0.00021917,2]
[388667259,1759312250765,-500.0,0.00021917,2]
[388667261,1759312250774,-500.0,0.00021917,2]
[388667263,1759312250784,-500.54584863,0.00021917,2]
[388667265,1759312250793,-500.0,0.00021917,2]
[388667267,1759312250802,-1621.01,0.00021917,2]
[388667269,1759312250811,-500.0,0.00021917,2]
[388667271,1759312250820,-500.0,0.00021917,2]
[388667291,1759312250989,-217.49291147,0.00021917,2]
[388667293,1759312250999,-500.0,0.00021917,2]
[388667295,1759312251008,-500.0,0.00021917,2]
[388667297,1759312251017,-500.0,0.00021917,2]
[388667299,1759312251026,-500.0,0.00021917,2]
[388667301,1759312251035,-500.0,0.00021917,2]
[388667303,1759312251044,-500.0,0.00021917,2]
[388667305,1759312251053,-500.0,0.00021917,2]
[388667307,1759312251062,-1054.76,0.00021917,2]
[388667309,1759312251070,-500.0,0.00021917,2]
[388667311,1759312251079,-902.65,0.00021917,2]
[388667313,1759312251088,-500.0,0.00021917,2]
[388667315,1759312251097,-500.0,0.00021917,2]
[388667317,1759312251106,-502.22513231,0.00021917,2]
[388667319,1759312251114,-500.0,0.00021917,2]
[388667321,1759312251123,-500.0,0.00021917,2]
[388667323,1759312251133,-500.0,0.00021917,2]
[388667325,1759312251143,-563.97,0.00021917,2]
[388667327,1759312251152,-500.3659215,0.00021917,2]
[388667329,1759312251161,-500.0,0.00021917,2]
[388667331,1759312251170,-501.83780841,0.00021917,2]
[388667333,1759312251179,-500.0,0.00021917,2]
[388667335,1759312251188,-965.94,0.00021917,2]
[388667337,1759312251197,-500.0,0.00021917,2]
[388667339,1759312251206,-500.0,0.00021917,2]
[388667341,1759312251216,-1472.79,0.00021917,2]
[388667343,1759312251225,-500.68453506,0.00021917,2]
[388667345,1759312251234,-500.0,0.00021917,2]
[388667347,1759312251243,-228.59947524,0.00021917,2]
[388667349,1759312251252,-500.0,0.00021917,2]
[388667350,1759312251260,-537.23,0.00021917,2]
[388667353,1759312251270,-500.0,0.00021917,2]
[388667354,1759312251278,-500.0,0.00021917,2]
[388667356,1759312251288,-500.0,0.00021917,2]
[388667358,1759312251297,-500.0,0.00021917,2]
[388667361,1759312251307,-1084.82,0.00021917,2]
[388667363,1759312251316,-500.0,0.00021917,2]
[388667365,1759312251325,-500.0,0.00021917,2]
[388667366,1759312251335,-500.0,0.00021917,2]
[388667368,1759312251344,-500.0,0.00021917,2]
[388667370,1759312251353,-500.0,0.00021917,2]
[388667372,1759312251363,-561.85,0.00021917,2]
[388667374,1759312251372,-538.44,0.00021917,2]
[388667376,1759312251382,-500.0,0.00021917,2]
[388667378,1759312251391,-500.51941042,0.00021917,2]
[388667380,1759312251400,-500.0,0.00021917,2]
[388667382,1759312251409,-500.0,0.00021917,2]
[388667384,1759312251417,-500.0,0.00021917,2]
[388667386,1759312251426,-500.0,0.00021917,2]
[388667388,1759312251435,-500.0,0.00021917,2]
[388667390,1759312251444,-500.0,0.00021917,2]
[388667392,1759312251453,-500.0,0.00021917,2]
[388667394,1759312251462,-500.0,0.00021917,2]
[388667396,1759312251471,-640.46,0.00021917,2]
[388667398,1759312251480,-560.41,0.00021917,2]
[388667400,1759312251489,-500.0,0.00021917,2]
[388667402,1759312251497,-500.0,0.00021917,2]
[388667404,1759312251508,-500.0,0.00021917,2]
[388667406,1759312251517,-500.0,0.00021917,2]
[388667408,1759312251527,-500.0,0.00021917,2]
[388667410,1759312251537,-500.0,0.00021917,2]
[388667412,1759312251546,-500.0,0.00021917,2]
[388667414,1759312251555,-1031.85,0.00021917,2]
[388667415,1759312251565,-578.44862135,0.00021917,2]
[388667417,1759312251574,-500.0,0.00021917,2]
[388667419,1759312251583,-1075.81,0.00021917,2]
[388667422,1759312251595,-500.0,0.00021917,2]
[388667424,1759312251604,-500.0,0.00021917,2]
[388667426,1759312251613,-916.38,0.00021917,2]
[388667428,1759312251622,-1325.83,0.00021917,2]
[388667430,1759312251634,-619.11274172,0.00021917,2]
[388667432,1759312251645,-582.94,0.00021917,2]
[388667434,1759312251655,-500.0,0.00021917,2]
[388667436,1759312251664,-500.0,0.00021917,2]
[388667438,1759312251674,-501.9395177,0.00021917,2]
[388667440,1759312251683,-1000.0,0.00021917,2]
[388667442,1759312251693,-152.90210025,0.00021917,2]
[388667443,1759312251704,-2603.33,0.00021917,2]
[388667446,1759312251714,-1917.76,0.00021917,2]
[388667448,1759312251724,-500.0,0.00021917,2]
[388667449,1759312251733,-500.0,0.00021917,2]
[388667452,1759312251743,-500.0,0.00021917,2]
[388667453,1759312251752,-500.0,0.00021917,2]
[388667455,1759312251762,-500.0,0.00021917,2]
[388667457,1759312251771,-500.0,0.00021917,2]
[388667459,1759312251780,-206.9543817,0.00021917,2]
[388667461,1759312251789,-512.57334064,0.00021917,2]
[388667463,1759312251798,-500.0,0.00021917,2]
[388667465,1759312251807,-500.0,0.00021917,2]
[388667467,1759312251816,-500.0,0.00021917,2]
[388667469,1759312251825,-527.93,0.00021917,2]
[388667471,1759312251834,-500.0,0.00021917,2]
[388667473,1759312251844,-500.0,0.00021917,2]
[388667475,1759312251853,-500.0,0.00021917,2]
[388667477,1759312251862,-500.0,0.00021917,2]
[388667479,1759312251871,-1949.66,0.00021917,2]
[388667481,1759312251880,-500.0,0.00021917,2]
[388667483,1759312251890,-500.0,0.00021917,2]
[388667485,1759312251903,-500.0,0.00021917,2]
[388667487,1759312251913,-1307.44,0.00021917,2]
[388667489,1759312251922,-500.0,0.00021917,2]
[388667491,1759312251931,-500.0,0.00021917,2]
[388667493,1759312251940,-500.0,0.00021917,2]
[388667495,1759312251949,-500.0,0.00021917,2]
[388667497,1759312251958,-1001.89,0.00021917,2]
[388667499,1759312251967,-500.0,0.00021917,2]
[388667501,1759312251976,-500.0,0.00021917,2]
[388667503,1759312251985,-1739.52,0.00021917,2]
[388667505,1759312251995,-1197.04,0.00021917,2]
[388667507,1759312252004,-1263.77,0.00021917,2]
[388667510,1759312252015,-828.3,0.00021917,2]
[388667512,1759312252024,-500.0,0.00021917,2]
[388667514,1759312252034,-500.0,0.00021917,2]
[388667516,1759312252043,-500.0,0.00021917,2]
[388667518,1759312252052,-1955.93,0.00021917,2]
[388667520,1759312252061,-500.0,0.00021917,2]
[388667522,1759312252070,-500.0,0.00021917,2]
[388667524,1759312252079,-500.0,0.00021917,2]
[388667526,1759312252088,-500.0,0.00021917,2]
[388667528,1759312252097,-500.0,0.00021917,2]
[388667530,1759312252106,-500.0,0.00021917,2]
[388667532,1759312252117,-500.0,0.00021917,2]
[388667534,1759312252125,-822.71,0.00021917,2]
[388667536,1759312252135,-500.0,0.00021917,2]
[388667538,1759312252144,-1018.18,0.00021917,2]
[388667540,1759312252153,-500.0,0.00021917,2]
[388667542,1759312252162,-500.0,0.00021917,2]
[388667544,1759312252171,-500.0,0.00021917,2]
[388667546,1759312252179,-1735.72,0.00021917,2]
[388667548,1759312252188,-500.0,0.00021917,2]
[388667550,1759312252197,-821.86,0.00021917,2]
[388667552,1759312252206,-500.0,0.00021917,2]
[388667554,1759312252216,-685.37,0.00021917,2]
[388667556,1759312252224,-500.0,0.00021917,2]
[388667558,1759312252233,-913.84,0.00021917,2]
[388667560,1759312252242,-500.0,0.00021917,2]
[388667562,1759312252251,-500.0,0.00021917,2]
[388667564,1759312252260,-500.0,0.00021917,2]
[388667566,1759312252270,-500.0,0.00021917,2]
[388667568,1759312252279,-500.0,0.00021917,2]
[388667570,1759312252289,-557.42,0.00021917,2]
[388667572,1759312252299,-501.63833302,0.00021917,2]
[388667574,1759312252309,-1221.69,0.00021917,2]
[388667576,1759312252318,-500.0,0.00021917,2]
[388667578,1759312252327,-1275.45,0.00021917,2]
[388667580,1759312252336,-237.061805,0.00021917,2]
[388667582,1759312252345,-500.0,0.00021917,2]
[388667584,1759312252355,-1363.26,0.00021917,2]
[388667586,1759312252364,-500.0,0.00021917,2]
[388667588,1759312252374,-500.0,0.00021917,2]
[388667590,1759312252383,-500.10014917,0.00021917,2]
[388667592,1759312252392,-500.0,0.00021917,2]
[388667594,1759312252401,-500.0,0.00021917,2]
[388667596,1759312252410,-500.0,0.00021917,2]
[388667598,1759312252420,-500.0,0.00021917,2]
[388667600,1759312252429,-500.0,0.00021917,2]
[388667602,1759312252439,-558.86,0.00021917,2]
[388667604,1759312252447,-500.0,0.00021917,2]
[388667606,1759312252456,-539.7,0.00021917,2]
[388667608,1759312252465,-677.29,0.00021917,2]
[388667610,1759312252474,-500.0,0.00021917,2]
[388667612,1759312252483,-774.78,0.00021917,2]
[388667614,1759312252492,-611.67,0.00021917,2]
[388667616,1759312252502,-500.0,0.00021917,2]
[388667618,1759312252510,-775.14,0.00021917,2]
[388667620,1759312252520,-500.0,0.00021917,2]
[388667621,1759312252529,-500.0,0.00021917,2]
[388667624,1759312252539,-500.0,0.00021917,2]
[388667625,1759312252548,-764.07,0.00021917,2]
[388667627,1759312252557,-1869.14,0.00021917,2]
[388667629,1759312252566,-1129.32,0.00021917,2]
[388667631,1759312252575,-593.25,0.00021917,2]
[388667633,1759312252585,-1425.74,0.00021917,2]
[388667635,1759312252594,-1425.74,0.00021917,2]
[388667637,1759312252602,-1425.74,0.00021917,2]
[388667639,1759312252611,-1425.74,0.00021917,2]
[388667641,1759312252620,-1425.74,0.00021917,2]
[388667643,1759312252629,-1425.74,0.00021917,2]
[388667645,1759312252642,-1425.74,0.00021917,2]
[388667647,1759312252651,-1425.74,0.00021917,2]
[388667649,1759312252660,-500.0,0.00021917,2]
[388667651,1759312252670,-1425.74,0.00021917,2]
[388667653,1759312252680,-1425.74,0.00021917,2]
[388667655,1759312252690,-1425.74,0.00021917,2]
[388667657,1759312252700,-1425.74,0.00021917,2]
[388667659,1759312252711,-454.44991759,0.00021917,2]
[388667834,1759312254491,-283.67,0.00018805,2]
[388667836,1759312254500,-477.668078,0.00021,2]
[388667838,1759312254510,-477.668078,0.00021472,2]
[388667840,1759312254519,-45.55008241,0.00021917,2]
[388667843,1759312254528,-1425.74,0.00021917,2]
[388667845,1759312254538,-1179.81200962,0.00021917,2]
[388667848,1759312254562,-245.92799038,0.00021917,2]
[388667850,1759312254571,-1425.74,0.00021917,2]
[388667853,1759312254585,-1425.74,0.00021917,2]
[388667855,1759312254595,-774.45,0.00021917,2]
[388667857,1759312254605,-500.0,0.00021917,2]
[388667859,1759312254614,-500.0,0.00021917,2]
[388667861,1759312254624,-520.01,0.00021917,2]
[388667863,1759312254634,-1539.94,0.00021917,2]
[388667864,1759312254651,-500.0,0.00021917,2]
[388667866,1759312254660,-538.74,0.00021917,2]
[388667868,1759312254669,-500.0,0.00021917,2]
[388667870,1759312254678,-585.72,0.00021917,2]
[388667872,1759312254687,-556.39,0.00021917,2]
[388667874,1759312254697,-500.0,0.00021917,2]
[388667877,1759312254706,-500.0,0.00021917,2]
[388667879,1759312254716,-500.0,0.00021917,2]
[388667881,1759312254725,-768.56,0.00021917,2]
[388667883,1759312254734,-500.0,0.00021917,2]
[388667885,1759312254743,-631.85,0.00021917,2]
[388667887,1759312254753,-686.14,0.00021917,2]
[388667889,1759312254763,-1810.35,0.00021917,2]
[388667891,1759312254772,-500.0,0.00021917,2]
[388667893,1759312254781,-500.0,0.00021917,2]
[388667895,1759312254793,-508.26363858,0.00021917,2]
[388667897,1759312254802,-500.0,0.00021917,2]
[388667899,1759312254812,-500.0,0.00021917,2]
[388667901,1759312254821,-500.0,0.00021917,2]
[388667903,1759312254830,-500.0,0.00021917,2]
[388667905,1759312254840,-500.0,0.00021917,2]
[388667907,1759312254850,-500.0,0.00021917,2]
[388667909,1759312254859,-535.02,0.00021917,2]
[388667911,1759312254868,-106.25014249,0.00021917,2]
[388667913,1759312254882,-393.74985751,0.00021917,2]
[388667915,1759312254891,-500.0,0.00021917,2]
[388667917,1759312254900,-936.23,0.00021917,2]
[388667919,1759312254909,-1333.46,0.00021917,2]
[388667921,1759312254918,-500.0,0.00021917,2]
[388667924,1759312254928,-89.89002639,0.00021917,2]
[388667937,1759312255048,-523.64518086,0.00021917,2]
[388667939,1759312255057,-23.82801917,0.00021917,2]
[388667943,1759312255081,-476.610521,0.00021917,2]
[388667945,1759312255091,-121.7256308,0.00021917,2]
[388667949,1759312255115,-6062.29696365,0.00021032,2]
[388667951,1759312255125,-378.2743692,0.00021917,2]
[388667953,1759312255134,-500.0,0.00021917,2]
[388667955,1759312255143,-404.1421123,0.00021917,2]
[388667957,1759312255154,-910.8,0.00021917,2]
[388667959,1759312255162,-500.0,0.00021917,2]
[388667961,1759312255171,-500.0,0.00021917,2]
[388667963,1759312255180,-500.0,0.00021917,2]
[388667965,1759312255189,-500.0,0.00021917,2]
[388667967,1759312255201,-500.68847372,0.00021917,2]
[388667969,1759312255220,-147.69174353,0.00021917,2]
[388669229,1759312612828,-569.407,0.0001699,2]
[388669230,1759312612851,-158.26,0.00017886,2]
[388669231,1759312612871,-150.52,0.00018025,2]
[388669232,1759312612892,-150.81,0.00018455,2]
[388669233,1759312612912,-151.16,0.00018455,2]
[388669234,1759312612933,-152.17,0.00018455,2]
[388669235,1759312612954,-1090.0,0.00018455,2]
[388669236,1759312612976,-370.35923647,0.00018585,2]
[388669237,1759312612998,-531.88,0.00018934,2]
[388669238,1759312613019,-152.08,0.00019426,2]
[388669239,1759312613040,-150.11,0.00019426,2]
[388669240,1759312613060,-1090.0,0.00019426,2]
[388669241,1759312613081,-385.23,0.000198,2]
[388669242,1759312617670,319.10575538,0.000199,2]
[388669249,1759312730880,250.0,0.00017,2]
[388669250,1759312732155,300.0,0.00019,2]
[388669261,1759312762302,182.0,0.000173,2]
[388669262,1759312762381,179.0,0.0001848,2]
[388669263,1759312762524,175.0,0.0001967,2]
[388669286,1759312798321,539.677,0.00016958,2]
[388669359,1759312916900,169.85,0.00018423,2]
[388669375,1759312944167,168.0,0.00019835,2]
[388669376,1759312948869,168.0,0.0001997,2]
[388669378,1759312963551,168.0,0.00019748,2]
[388669401,1759312997716,1991.53676831,0.00017377,2]
[388669404,1759312998108,1991.53676831,0.00017366,2]
[388669405,1759312998546,1991.53676831,0.00017464,2]
[388669406,1759312998917,1991.53676831,0.0001736,2]
[388669407,1759312999239,1991.53676831,0.00017444,2]
[388669445,1759313155041,163.0,0.0002,2]
[388669446,1759313155081,153.0,0.0002,2]
[388669447,1759313155242,153.0,0.0002,2]
[388669448,1759313155488,153.0,0.0002,2]
[388669449,1759313156076,153.0,0.0002,2]
[388669450,1759313156249,153.0,0.0002,2]
[388669451,1759313156456,153.0,0.0002,2]
[388669452,1759313156706,153.0,0.0002,2]
[388669453,1759313156925,153.0,0.0002,2]
[388669454,1759313157135,153.0,0.0002,2]
[388669455,1759313157374,153.0,0.0002,2]
[388669456,1759313157655,153.0,0.0002,2]
[388669457,1759313158159,153.0,0.0002,2]
[388669458,1759313158376,153.0,0.0002,2]
[388669459,1759313158599,153.0,0.0002,2]
[388669460,1759313158819,153.0,0.0002,2]
[388669461,1759313159068,153.0,0.0002,2]
[388669462,1759313159269,153.0,0.0002,2]
[388669463,1759313159494,153.0,0.0002,2]
[388669473,1759313290480,172.0,0.000163,2]
[388669474,1759313291239,168.0,0.0001748,2]
[388669475,1759313291519,165.0,0.0001867,2]
[388669476,1759313292060,161.0,0.0001985,2]
[388669485,1759313432373,-301.0,0.00020063,2]
[388669486,1759313432383,-300.0,0.00020064,2]
[388669487,1759313432395,-41.38381579,0.00020064,2]
[388669488,1759313432407,-273.72239803,0.00020064,2]
[388669489,1759313432438,-803.8244995,0.00020064,2]
[388669490,1759313432548,-81.06928668,0.00020064,2]
[388669491,1759313432557,-529.16,0.00020065,2]
[388669492,1759313432567,-534.7,0.00020065,2]
[388669493,1759313432576,-516.49,0.00020065,2]
[388669494,1759313432586,-519.66,0.00020065,2]
[388669495,1759313432595,-515.9,0.00020065,2]
[388669496,1759313432604,-239.84119403,0.00020065,2]
[388669497,1759313432613,-8882.6885148,0.00020065,2]
[388669498,1759313432624,-523.86,0.00020066,2]
[388669499,1759313432633,-519.04,0.00020066,2]
[388669500,1759313432642,-523.38,0.00020066,2]
[388669501,1759313432652,-524.53,0.00020066,2]
[388669502,1759313432661,-530.71,0.00020066,2]
[388669503,1759313432670,-528.31,0.00020067,2]
[388669504,1759313432679,-529.0,0.00020067,2]
[388669505,1759313432689,-527.41,0.00020067,2]
[388669506,1759313432698,-530.84,0.00020067,2]
[388669507,1759313432707,-526.96,0.00020067,2]
[388669508,1759313432717,-528.45,0.00020067,2]
[388669509,1759313432727,-520.06,0.00020067,2]
[388669510,1759313432736,-531.44,0.00020067,2]
[388669511,1759313432745,-151.31,0.00020067,2]
[388669512,1759313432755,-168.19915581,0.00020067,2]
[388669513,1759313432764,-152.78,0.00020077,2]
[388669514,1759313432773,-150.49,0.00020077,2]
[388669515,1759313432783,-152.76,0.00020077,2]
[388669516,1759313432792,-152.44,0.00020077,2]
[388669518,1759313432802,-150.72,0.00020077,2]
[388669520,1759313432811,-152.25,0.00020077,2]
[388669522,1759313432822,-151.52,0.00020077,2]
[388669524,1759313432831,-151.61,0.00020077,2]
[388669526,1759313432841,-529.04,0.00020077,2]
[388669528,1759313432850,-514.71,0.00020077,2]
[388669530,1759313432860,-533.4,0.00020077,2]
[388669532,1759313432869,-528.76,0.00020077,2]
[388669534,1759313432878,-1706.75,0.00020077,2]
[388669536,1759313432888,-525.75,0.00020077,2]
[388669538,1759313432898,-515.44,0.00020077,2]
[388669540,1759313432907,-532.17,0.00020077,2]
[388669542,1759313432917,-152.34,0.00020078,2]
[388669545,1759313432927,-524.19,0.00020078,2]
[388669548,1759313432937,-534.41,0.00020078,2]
[388669552,1759313432946,-152.88,0.00020078,2]
[388669556,1759313432956,-529.6,0.00020078,2]
[388669560,1759313432966,-150.68,0.00020078,2]
[388669563,1759313432975,-528.29,0.00020078,2]
[388669566,1759313432984,-533.02,0.00020078,2]
[388669569,1759313432993,-524.6,0.00020078,2]
[388669572,1759313433002,-151.58,0.00020078,2]
[388669573,1759313433012,-151.68,0.00020078,2]
[388669574,1759313433021,-525.41,0.00020079,2]
[388669576,1759313433031,-151.32,0.00020079,2]
[388669577,1759313433041,-150.1,0.00020079,2]
[388669578,1759313433050,-150.37,0.00020079,2]
[388669579,1759313433059,-522.44,0.00020079,2]
[388669580,1759313433068,-151.25,0.00020079,2]
[388669581,1759313433077,-168.0,0.00020082,2]
[388669582,1759313433087,-168.0,0.00020109,2]
[388669583,1759313433096,-4057.45734018,0.0002012,2]
[388669584,1759313433105,-355.0,0.00020154,2]
[388669585,1759313433117,-516.72,0.00020158,2]
[388669586,1759313433126,-152.7,0.00020158,2]
[388669587,1759313433136,-152.79,0.00020158,2]
[388669588,1759313433146,-152.53,0.00020158,2]
[388669589,1759313433155,-151.03,0.00020158,2]
[388669590,1759313433164,-151.29,0.00020158,2]
[388669591,1759313433174,-525.63,0.00020159,2]
[388669592,1759313433183,-168.0,0.00020168,2]
[388669593,1759313433192,-355.0,0.00020179,2]
[388669594,1759313433202,-150.0,0.00020195,4]
[388669595,1759313433211,-150.0,0.00020195,4]
[388669596,1759313433220,-150.0,0.00020195,4]
[388669597,1759313433231,-150.0,0.00020195,4]
[388669598,1759313433240,-158.27272199,0.00020195,4]
[388669599,1759313433250,-150.0,0.00020195,4]
[388669600,1759313433259,-151.48260455,0.00020195,4]
[388669601,1759313433268,-175.6831318,0.00020195,4]
[388669602,1759313433277,-150.0,0.00020195,4]
[388669603,1759313433286,-150.0,0.00020195,4]
[388669604,1759313433296,-150.0,0.00020195,4]
[388669605,1759313433312,-150.0,0.00020195,4]
[388669606,1759313433322,-150.0,0.00020195,4]
[388669607,1759313433330,-355.0,0.0002023,2]
[388669608,1759313433340,-168.0,0.00020284,2]
[388669609,1759313433351,-168.0,0.00020319,2]
[388669610,1759313433362,-322.6107,0.00020337,2]
[388669611,1759313433371,-500.0,0.00020337,2]
[388669612,1759313433382,-500.0,0.00020337,2]
[388669613,1759313433392,-500.0,0.00020337,2]
[388669614,1759313433402,-500.0,0.00020337,2]
[388669615,1759313433412,-500.0,0.00020337,2]
[388669616,1759313433422,-500.0,0.00020337,2]
[388669617,1759313433431,-500.0,0.00020337,2]
[388669618,1759313433441,-500.0,0.00020337,2]
[388669619,1759313433450,-500.0,0.00020337,2]
[388669620,1759313433460,-500.0,0.00020337,2]
[388669621,1759313433469,-500.0,0.00020337,2]
[388669622,1759313433478,-500.0,0.00020337,2]
[388669623,1759313433488,-500.0,0.00020337,2]
[388669624,1759313433498,-355.0,0.0002034,2]
[388669625,1759313433508,-150.0,0.0002035,2]
[388669626,1759313433517,-1263.0,0.0002035,2]
[388669627,1759313433526,-1706.75,0.00020351,2]
[388669628,1759313433535,-150.0,0.00020444,4]
[388669629,1759313433545,-355.0,0.00020446,2]
[388669630,1759313433554,-1090.0,0.00020448,2]
[388669631,1759313433564,-355.0,0.00020463,2]
[388669632,1759313433573,-621.0,0.00020471,2]
[388669633,1759313433582,-517.63781253,0.00020471,2]
[388669634,1759313433603,-918.88965469,0.00020471,2]
[388669635,1759313433649,-692.31295391,0.00020471,2]
[388669636,1759313433667,-426.83436047,0.00020471,2]
[388669645,1759313438261,-1483.6102184,0.00020471,2]
[388669646,1759313438271,-1840.0,0.000205,2]
[388669647,1759313438281,-154.5,0.00020541,2]
[388669648,1759313438291,-150.0,0.00020568,4]
[388669649,1759313438301,-150.0,0.00020568,4]
[388669650,1759313438315,-251.0101838,0.00020625,2]
[388669651,1759313438327,-1455.7398162,0.00020625,2]
[388669652,1759313438337,-810.48508653,0.00020655,2]
[388669653,1759313438347,-355.0,0.00020658,2]
[388669654,1759313438486,-355.0,0.00020689,2]
[388669655,1759313438497,-150.0,0.00020693,4]
[388669656,1759313438507,-385.23,0.000207,2]
[388669657,1759313438516,-355.0,0.00020701,2]
[388669658,1759313438525,-355.0,0.00020715,2]
[388669659,1759313438534,-200.0,0.00020791,2]
[388669660,1759313438543,-1162.84,0.00020823,2]
[388669661,1759313438553,-205.95183039,0.00020856,2]
[388669662,1759313438562,-1706.75,0.00020899,2]
[388669663,1759313438571,-4421.2712,0.000209,2]
[388669664,1759313438580,-150.0,0.00020942,4]
[388669665,1759313438590,-150.0,0.00020942,4]
[388669667,1759313438600,-150.0,0.00020942,4]
[388669668,1759313438609,-150.0,0.00020942,4]
[388669670,1759313438618,-150.0,0.00020942,4]
[388669673,1759313438628,-150.0,0.00020942,4]
[388669674,1759313438638,-150.0,0.00020942,4]
[388669677,1759313438647,-167.33720509,0.0002095,2]
[388669678,1759313438656,-500.0,0.0002095,2]
[388669680,1759313438665,-500.0,0.0002095,2]
[388669682,1759313438675,-219.44195607,0.0002095,2]
[388669684,1759313438685,-6178.22,0.00020951,2]
[388669686,1759313438694,-20.23290577,0.00020951,2]
[388669690,1759313438718,-130.75709423,0.00020951,2]
[388669692,1759313438728,-422.45290577,0.00020951,2]
[388669696,1759313438756,-425.52,0.00020951,2]
[388669700,1759313438790,-8191.27073547,0.00020951,2]
[388669703,1759313438801,-854.00691663,0.00020951,2]
[388669855,1759313440228,-1602.00602761,0.00020951,2]
[388669872,1759313440387,-384.37601149,0.00020951,2]
[388669883,1759313440492,-1348.8259882,0.00020951,2]